bitfinex/quotes_SOLUSD_20251231
["timestamp","ask_amount","ask_price","bid_price","bid_amount"]
[1767139769038,23.36799732,124.88,124.85,0.68]
[1767139769340,23.36799732,124.88,124.85,3.22545742]
[1767139773741,0.72,124.87,124.85,2.54545742]
[1767139774721,14.64,124.88,124.86,3.24545742]
[1767139775421,14.64,124.88,124.86,0.7]
[1767139776645,15.36,124.88,124.86,0.7]
[1767139785164,14.64,124.88,124.86,3.24545742]
[1767139785941,14.64,124.88,124.86,0.7]
[1767139787055,15.34,124.88,124.86,0.7]
[1767139788151,15.34,124.88,124.85,2.54545742]
[1767139788343,15.34,124.88,124.85,3.21545742]
[1767139788948,15.34,124.88,124.85,2.54545742]
[1767139789154,15.34,124.88,124.86,0.67]
[1767139791837,6.00817103,124.87,124.86,0.67]
[1767139792440,0.7,124.88,124.86,0.67]
[1767139792644,15.34,124.88,124.86,0.67]
[1767139796058,22.64811816,124.88,124.83,0.67]
[1767139796354,6.71009382,124.87,124.84,0.67]
[1767139796547,6.01009382,124.86,124.84,0.67]
[1767139796746,6.71009382,124.86,124.83,0.67]
[1767139796941,0.7,124.86,124.83,0.67]
[1767139798259,8.70894165,124.87,124.84,0.67]
[1767139798463,6.00900217,124.86,124.85,0.67]
[1767139798854,6.00900217,124.86,124.84,4.64336483]
[1767139799056,8.70894165,124.87,124.84,4.64336483]
[1767139799259,6.0089989,124.86,124.84,4.64336483]
[1767139799437,8.70894165,124.87,124.84,0.67]
[1767139799640,6.00847026,124.86,124.84,0.67]
[1767139799841,8.70894165,124.87,124.84,0.67]
[1767139800042,6.00846862,124.86,124.84,0.67]
[1767139800242,8.70894165,124.87,124.84,0.67]
[1767139800450,6.00837328,124.86,124.84,0.67]
[1767139800765,8.70894165,124.87,124.84,0.67]
[1767139800963,6.00837164,124.86,124.84,0.67]
[1767139801167,8.70894165,124.87,124.84,0.67]
[1767139804871,27.28127362,124.88,124.84,0.67]
[1767139805066,6.00777399,124.87,124.84,0.67]
[1767139805271,0.66,124.87,124.84,0.67]
[1767139809782,6.00833477,124.86,124.84,0.67]
[1767139809984,0.66,124.87,124.84,0.67]
[1767139810370,6.00831956,124.86,124.84,0.67]
[1767139810670,0.66,124.87,124.84,0.67]
[1767139810871,6.00831956,124.86,124.84,0.67]
[1767139811063,0.66,124.87,124.84,0.67]
[1767139811264,6.00833328,124.86,124.84,0.67]
[1767139811466,23.30790879,124.88,124.85,0.68]
[1767139811682,6.00832493,124.87,124.85,0.68]
[1767139811867,15.3,124.88,124.85,4.65336483]
[1767139812069,6.00802083,124.87,124.86,0.68]
[1767139812866,6.00802083,124.87,124.85,4.65336483]
[1767139813182,15.3,124.88,124.85,4.65336483]
[1767139813384,6.00821761,124.87,124.85,4.65336483]
[1767139813683,15.3,124.88,124.85,4.65336483]
[1767139813889,6.00821761,124.87,124.85,4.65336483]
[1767139814084,0.66,124.87,124.85,0.68]
[1767139816192,0.66,124.87,124.84,0.68]
[1767139816493,0.66,124.87,124.84,0.65000001]
[1767139817095,0.66,124.87,124.82,11.98473546]
[1767139817096,6.70853847,124.86,124.82,11.98473546]
[1767139817269,0.7,124.86,124.82,11.98473546]
[1767139818375,0.7,124.86,124.83,0.72]
[1767139826100,0.7,124.86,124.84,0.72]
[1767139827390,0.7,124.86,124.84,4.69336483]
[1767139828298,0.7,124.87,124.84,4.69336483]
[1767139830594,0.7,124.87,124.84,0.72]
[1767139830786,0.7,124.87,124.84,4.69336483]
[1767139837312,0.7,124.87,124.84,0.72]
[1767139850320,0.7,124.87,124.83,11.98424737]
[1767139850510,0.7,124.87,124.83,12.68424737]
[1767139851020,4.67336483,124.87,124.83,8.71088254]
[1767139851200,0.71,124.86,124.83,12.68424737]
[1767139851625,0.71,124.86,124.84,0.7]
[1767139876453,6.01267036,124.85,124.84,0.7]
[1767139877257,0.71,124.86,124.84,0.7]
[1767139878446,0.71,124.86,124.83,0.66]
[1767139878447,6.0125347,124.85,124.83,0.66]
[1767139878622,0.71,124.86,124.83,0.66]
[1767139878947,6.01284487,124.85,124.83,0.66]
[1767139879151,0.71,124.86,124.83,0.66]
[1767139879333,6.01196445,124.85,124.83,0.66]
[1767139879537,0.71,124.86,124.83,0.66]
[1767139879739,6.01196609,124.85,124.83,0.66]
[1767139880039,0.71,124.86,124.83,0.66]
[1767139880239,6.01194819,124.85,124.83,0.66]
[1767139880440,0.71,124.86,124.83,0.66]
[1767139880640,6.01126595,124.85,124.83,0.66]
[1767139880953,0.71,124.86,124.83,0.66]
[1767139881257,6.01126759,124.85,124.83,0.66]
[1767139881437,0.71,124.86,124.83,0.66]
[1767139881638,6.01068728,124.85,124.83,0.66]
[1767139881839,0.71,124.86,124.83,0.66]
[1767139882038,6.01068728,124.85,124.83,0.66]
[1767139882338,0.71,124.86,124.83,0.66]
[1767139882541,6.01019146,124.85,124.83,0.66]
[1767139882741,0.71,124.86,124.83,0.66]
[1767139883042,6.01026992,124.85,124.83,0.66]
[1767139883234,0.71,124.86,124.83,0.66]
[1767139883435,6.00961359,124.85,124.83,0.66]
[1767139883729,0.71,124.86,124.83,0.66]
[1767139883934,6.00961196,124.85,124.83,0.66]
[1767139884136,0.71,124.86,124.83,0.66]
[1767139884341,6.00906126,124.85,124.83,0.66]
[1767139884531,0.71,124.86,124.83,0.66]
[1767139884737,6.00906289,124.85,124.83,0.66]
[1767139885034,0.71,124.86,124.83,0.66]
[1767139885237,6.0090436,124.85,124.83,0.66]
[1767139885438,0.71,124.86,124.83,0.66]
[1767139885739,6.00859318,124.85,124.83,0.66]
[1767139886063,14.64,124.85,124.83,0.66]
[1767139900754,15.35,124.85,124.83,0.66]
[1767139900956,15.35,124.85,124.82,0.66]
[1767139901274,15.35,124.85,124.78,0.66000001]
[1767139901275,0.71,124.82,124.78,0.66000001]
[1767139901463,0.71,124.79,124.78,1e-08]
[1767139901770,14.64,124.79,124.78,0.66000001]
[1767139903078,14.61090285,124.79,124.78,0.66000001]
[1767139903970,14.58158449,124.79,124.78,0.66000001]
[1767139905065,23.23513228,124.84,124.78,0.66000001]
[1767139905066,2.54373062,124.86,124.79,0.66]
[1767139905270,0.71,124.84,124.81,0.66]
[1767139905467,3.25373062,124.84,124.81,0.66]
[1767139905770,17.89373062,124.84,124.81,0.66]
[1767139908459,15.35,124.84,124.81,0.66]
[1767139908779,15.32,124.84,124.81,0.66]
[1767139909782,15.32,124.84,124.81,3.20373062]
[1767139910880,15.32,124.84,124.81,0.66]
[1767139916984,15.32,124.84,124.81,4.63655177]
[1767139920865,15.32,124.84,124.81,0.66]
[1767139923981,8.00957811,124.86,124.81,3.97655177]
[1767139924188,21.29882708,124.85,124.82,0.68]
[1767139924375,15.3,124.85,124.82,0.68]
[1767139924775,0.66,124.86,124.83,0.68]
[1767139929881,15.3,124.86,124.83,0.68]
[1767139930208,23.30901549,124.86,124.83,0.68]
[1767139930499,27.28556726,124.86,124.83,0.68]
[1767139932993,23.30901549,124.86,124.83,0.68]
[1767139933291,27.28556726,124.86,124.83,0.68]
[1767139935095,5.99846465,124.85,124.83,0.68]
[1767139935296,27.28556726,124.86,124.83,0.68]
[1767139935487,5.99921247,124.85,124.83,0.68]
[1767139935689,27.28556726,124.86,124.83,0.68]
[1767139935880,5.99921247,124.85,124.83,0.68]
[1767139936082,27.28556726,124.86,124.83,0.68]
[1767139936277,9.97562474,124.85,124.8,0.71]
[1767139936483,10.63617775,124.84,124.81,0.71]
[1767139936684,19.27655177,124.84,124.81,0.71]
[1767139937898,15.3,124.84,124.81,0.71]
[1767139940298,15.3,124.84,124.81,4.68655177]
[1767139944301,15.3,124.84,124.81,0.71]
[1767139944503,15.3,124.84,124.81,4.68655177]
[1767139947492,15.3,124.84,124.82,0.71]
[1767139948504,14.64,124.84,124.83,0.71]
[1767139948807,14.64,124.84,124.82,4.68655177]
[1767139949606,14.64,124.84,124.82,0.71]
[1767139953913,14.64,124.84,124.82,4.68655177]
[1767139954112,14.64,124.84,124.83,0.71]
[1767139956017,27.28593949,124.86,124.83,0.71]
[1767139956202,6.009174,124.85,124.83,0.71]
[1767139956391,27.28593949,124.86,124.83,0.71]
[1767139956592,6.00931857,124.85,124.83,0.71]
[1767139956891,27.28593949,124.86,124.83,0.71]
[1767139957091,6.00931857,124.85,124.83,0.71]
[1767139957298,27.28593949,124.86,124.83,0.71]
[1767139957499,6.00937539,124.85,124.83,0.71]
[1767139957792,27.28593949,124.86,124.83,0.71]
[1767139957991,6.00937376,124.85,124.83,0.71]
[1767139958192,27.28593949,124.86,124.83,0.71]
[1767139958490,6.00944256,124.85,124.83,0.71]
[1767139958691,27.28593949,124.86,124.83,0.71]
[1767139958892,6.00944256,124.85,124.83,0.71]
[1767139959191,27.28593949,124.86,124.83,0.71]
[1767139959393,6.00952036,124.85,124.83,0.71]
[1767139959691,27.28593949,124.86,124.83,0.71]
[1767139959913,6.00952036,124.85,124.83,0.71]
[1767139960113,27.28593949,124.86,124.83,0.71]
[1767139960313,6.00952036,124.85,124.83,0.71]
[1767139960517,27.28593949,124.86,124.83,0.71]
[1767139960720,6.00960568,124.85,124.83,0.71]
[1767139961017,27.28593949,124.86,124.83,0.71]
[1767139961315,6.00960404,124.85,124.83,4.68655177]
[1767139961518,27.28593949,124.86,124.83,0.71]
[1767139961708,6.00970201,124.85,124.83,0.71]
[1767139961909,27.28593949,124.86,124.83,0.71]
[1767139962109,6.00970365,124.85,124.83,0.71]
[1767139962312,27.28593949,124.86,124.83,0.71]
[1767139962505,6.00968955,124.85,124.83,0.71]
[1767139962705,27.28593949,124.86,124.83,0.71]
[1767139962919,6.00968791,124.85,124.83,0.71]
[1767139963123,27.28593949,124.86,124.83,0.71]
[1767139963324,6.00938231,124.85,124.83,0.71]
[1767139963524,27.28593949,124.86,124.83,0.71]
[1767139963744,6.00920815,124.85,124.83,0.71]
[1767139964025,27.28593949,124.86,124.83,0.71]
[1767139964208,6.00920815,124.85,124.83,0.71]
[1767139964410,27.28593949,124.86,124.83,0.71]
[1767139964609,6.00904951,124.85,124.83,0.71]
[1767139964823,6.00904951,124.84,124.83,0.71]
[1767139965312,27.28593949,124.86,124.83,0.71]
[1767139965611,6.00944087,124.85,124.83,0.71]
[1767139965809,27.28593949,124.86,124.83,0.71]
[1767139966010,6.00943759,124.85,124.83,0.71]
[1767139966216,0.66,124.85,124.83,0.71]
[1767139974328,6.01068565,124.84,124.83,0.71]
[1767139978131,6.01122931,124.84,124.83,0.71]
[1767139983950,25.90379155,124.86,124.83,0.71]
[1767139984148,6.01174797,124.85,124.83,0.71]
[1767139984448,6.0120453,124.84,124.83,0.71]
[1767139985159,25.90379155,124.86,124.83,0.71]
[1767139985338,6.01191267,124.85,124.83,0.71]
[1767139985539,25.90379155,124.86,124.83,0.71]
[1767139985766,6.01190939,124.85,124.83,0.71]
[1767139985939,25.90379155,124.86,124.83,0.71]
[1767139986138,6.01191103,124.85,124.83,0.71]
[1767139986345,25.90379155,124.86,124.83,0.71]
[1767139986649,6.01196457,124.85,124.83,0.71]
[1767139986846,25.90379155,124.86,124.83,0.71]
[1767139987049,6.01196293,124.85,124.83,0.71]
[1767139987265,25.90379155,124.86,124.83,0.71]
[1767139987469,6.01206352,124.85,124.83,0.71]
[1767139987639,25.90379155,124.86,124.83,0.71]
[1767139987938,6.01206352,124.85,124.83,0.71]
[1767139988140,25.90379155,124.86,124.83,0.71]
[1767139988364,6.01195941,124.85,124.83,0.71]
[1767139988555,23.35938772,124.86,124.83,0.71]
[1767139988762,6.01245686,124.85,124.83,0.71]
[1767139988959,25.90379155,124.86,124.83,0.71]
[1767139989157,6.01245523,124.85,124.83,0.71]
[1767139989353,25.90379155,124.86,124.83,0.71]
[1767139989650,6.01267036,124.85,124.83,0.71]
[1767139989851,25.90379155,124.86,124.83,0.71]
[1767139990056,6.012672,124.85,124.83,0.71]
[1767139990263,23.35938772,124.86,124.83,0.71]
[1767139990475,6.01293734,124.85,124.83,0.71]
[1767139990780,23.35938772,124.86,124.83,0.71]
[1767139990970,6.01293898,124.85,124.83,0.71]
[1767139991172,23.35938772,124.86,124.83,0.71]
[1767139991473,6.01327992,124.85,124.83,0.71]
[1767139991672,23.35938772,124.86,124.83,0.71]
[1767139991981,6.01327992,124.85,124.83,0.71]
[1767139992157,23.35938772,124.86,124.83,0.71]
[1767139992477,6.01324759,124.85,124.83,0.71]
[1767139992677,23.35938772,124.86,124.83,0.71]
[1767139992881,6.01324923,124.85,124.83,0.71]
[1767139993066,23.35938772,124.86,124.83,0.71]
[1767139993267,6.01317771,124.85,124.83,0.71]
[1767139993575,23.35938772,124.86,124.83,0.71]
[1767139993872,6.01323628,124.85,124.83,0.71]
[1767139994174,23.35938772,124.86,124.83,0.71]
[1767139994366,6.01342537,124.85,124.83,0.71]
[1767139994568,23.35938772,124.86,124.83,0.71]
[1767139994771,6.01342537,124.85,124.83,0.71]
[1767139994973,23.35938772,124.86,124.83,0.71]
[1767139995154,6.01342537,124.85,124.83,0.71]
[1767139995448,23.35938772,124.86,124.83,0.71]
[1767139995647,7.42203123,124.89,124.85,2.54440383]
[1767139995851,0.66,124.89,124.85,2.54440383]
[1767139996956,8.66748222,124.89,124.86,2.54440383]
[1767139997669,23.32663279,124.9,124.87,2.54440383]
[1767139997875,0.68,124.89,124.86,2.54440383]
[1767139998752,0.68,124.89,124.87,2.54440383]
[1767140003580,15.32,124.9,124.87,2.54440383]
[1767140003984,14.64,124.9,124.87,2.54440383]
[1767140004163,0.68,124.89,124.87,2.54440383]
[1767140004560,15.32,124.9,124.87,2.54440383]
[1767140005182,15.32,124.9,124.86,2.54440383]
[1767140007681,14.64,124.9,124.86,2.54440383]
[1767140007862,0.68,124.89,124.86,2.54440383]
[1767140009679,14.64,124.9,124.87,2.54440383]
[1767140009875,8.00384184,124.94,124.89,2.54440383]
[1767140010071,3.22440383,124.92,124.88,2.54440383]
[1767140010272,0.68,124.91,124.88,2.54440383]
[1767140011182,0.68,124.91,124.87,8.0083029]
[1767140011378,0.68,124.91,124.88,2.54440383]
[1767140014091,14.64,124.92,124.9,2.54440383]
[1767140014292,0.68,124.93,124.9,2.54440383]
[1767140014982,0.68,124.93,124.88,8.00767089]
[1767140015172,0.68,124.93,124.9,2.54440383]
[1767140018083,0.68,124.93,124.88,8.00768737]
[1767140018392,0.68,124.92,124.88,8.00768737]
[1767140018594,0.68,124.92,124.89,2.54440383]
[1767140020197,15.32,124.93,124.89,2.54440383]
[1767140021896,15.32,124.93,124.9,2.54440383]
[1767140022802,0.68,124.92,124.9,2.54440383]
[1767140024806,0.68,124.92,124.88,8.00768737]
[1767140024998,0.68,124.92,124.89,2.54440383]
[1767140030309,0.68,124.92,124.87,22.64801957]
[1767140030486,0.68,124.92,124.88,2.54440383]
[1767140036520,0.68,124.92,124.88,3.97109884]
[1767140038391,0.69,124.91,124.88,3.97109884]
[1767140039219,0.69,124.91,124.87,8.00786466]
[1767140039431,0.69,124.91,124.87,3.97109884]
[1767140039590,14.62,124.91,124.87,3.97109884]
[1767140039789,0.69,124.9,124.87,3.97109884]
[1767140044219,0.69,124.9,124.88,3.97109884]
[1767140048487,11.9758872,124.93,124.88,3.97109884]
[1767140048488,14.62,124.92,124.89,3.97109884]
[1767140048686,15.29,124.92,124.9,3.97109884]
[1767140048906,0.67,124.92,124.91,3.97109884]
[1767140049307,0.67,124.92,124.9,3.97109884]
[1767140052598,0.67,124.93,124.9,11.97746884]
[1767140055418,0.67,124.93,124.9,8.00637]
[1767140056798,0.67,124.93,124.9,3.97109884]
[1767140064626,0.67,124.93,124.88,20.01853172]
[1767140064820,0.67,124.93,124.89,3.97109884]
[1767140065512,0.72,124.91,124.87,11.9794275]
[1767140065719,4.69109884,124.91,124.87,8.00832866]
[1767140065921,0.72,124.9,124.87,8.00832866]
[1767140066831,0.72,124.9,124.87,3.97109884]
[1767140068638,0.72,124.9,124.87,11.97901416]
[1767140070229,0.72,124.9,124.86,8.00897004]
[1767140070410,0.72,124.9,124.87,3.97109884]
[1767140072138,0.72,124.9,124.87,11.97937182]
[1767140076640,0.72,124.9,124.88,3.97109884]
[1767140080936,0.72,124.9,124.87,11.97902797]
[1767140082128,0.72,124.9,124.87,8.00792913]
[1767140083641,0.72,124.9,124.87,11.97902797]
[1767140098530,0.72,124.9,124.87,2.54187067]
[1767140098840,0.72,124.9,124.85,10.5514822]
[1767140099139,0.65,124.89,124.85,10.5514822]
[1767140099334,0.65,124.89,124.85,8.00961153]
[1767140099639,0.65,124.89,124.86,2.54187067]
[1767140100571,0.65,124.89,124.86,10.55057587]
[1767140100866,0.65,124.89,124.87,2.54187067]
[1767140101933,0.68,124.93,124.88,2.54187067]
[1767140102251,0.68,124.91,124.89,2.54187067]
[1767140103852,0.68,124.91,124.88,10.54938475]
[1767140108959,0.68,124.91,124.88,2.54187067]
[1767140110561,0.68,124.91,124.87,2.54187067]
[1767140111364,0.68,124.91,124.85,8.00961153]
[1767140111548,0.68,124.91,124.87,2.54187067]
[1767140115661,22.62484927,124.93,124.88,2.54187067]
[1767140115864,6.68702329,124.92,124.88,2.54187067]
[1767140116069,0.68,124.92,124.88,2.54187067]
[1767140117960,0.68,124.92,124.88,10.54945309]
[1767140129176,0.68,124.92,124.88,2.54187067]
[1767140129377,0.68,124.92,124.87,10.54989433]
[1767140129566,15.3,124.92,124.87,10.54989433]
[1767140129874,0.66,124.91,124.87,10.54989433]
[1767140135184,0.66,124.91,124.88,2.54187067]
[1767140135393,0.66,124.91,124.89,2.54187067]
[1767140138173,0.66,124.94,124.9,2.54187067]
[1767140138373,6.6640836,124.93,124.9,2.54187067]
[1767140138573,0.66,124.93,124.9,2.54187067]
[1767140138987,0.66,124.93,124.91,2.54187067]
[1767140139288,0.66,124.93,124.9,2.54187067]
[1767140139886,0.66,124.93,124.91,2.54187067]
[1767140142170,0.66,124.93,124.9,10.54804129]
[1767140144470,14.62,124.94,124.9,10.54804129]
[1767140144666,15.28,124.94,124.9,10.54804129]
[1767140144890,0.66,124.93,124.9,8.00617062]
[1767140145096,0.66,124.93,124.9,10.54804129]
[1767140145687,0.66,124.93,124.89,10.54870589]
[1767140145891,0.66,124.92,124.88,8.00731072]
[1767140147295,0.66,124.92,124.88,10.54918139]
[1767140149796,0.66,124.92,124.86,20.02132414]
[1767140150005,0.66,124.92,124.88,2.54187067]
[1767140152108,0.66,124.92,124.88,10.54912872]
[1767140155513,0.66,124.92,124.86,20.02132414]
[1767140155706,0.66,124.92,124.88,2.54187067]
[1767140158937,0.66,124.92,124.89,8.0070462]
[1767140160515,0.66,124.92,124.88,11.97883778]
[1767140161397,0.66,124.92,124.89,3.97115041]
[1767140162806,0.66,124.92,124.9,8.00640512]
[1767140163885,15.32,124.93,124.9,8.00640512]
[1767140164310,15.32,124.93,124.9,11.97755553]
[1767140164717,15.32,124.93,124.9,8.00640512]
[1767140165014,15.32,124.93,124.9,11.97755553]
[1767140168005,0.7,124.93,124.9,11.97755553]
[1767140169425,0.7,124.96,124.92,3.97115041]
[1767140169605,6.69996817,124.95,124.92,3.97115041]
[1767140169805,0.7,124.95,124.92,3.97115041]
[1767140170716,0.7,124.95,124.93,3.97115041]
[1767140170917,0.7,124.96,124.93,3.97115041]
[1767140171833,0.7,124.96,124.93,11.97515073]
[1767140172822,0.7,124.96,124.93,8.00400032]
[1767140175914,0.7,124.96,124.93,11.97515073]
[1767140181911,0.7,124.96,124.94,3.97115041]
[1767140190334,0.7,124.96,124.91,20.01303832]
[1767140190506,0.7,124.96,124.94,3.97115041]
[1767140199145,0.8,124.97,124.94,3.97115041]
[1767140203041,0.8,124.97,124.93,3.97115041]
[1767140208453,0.8,124.97,124.94,3.97115041]
[1767140211172,14.72,124.98,124.96,3.97115041]
[1767140211494,0.81,124.98,124.96,3.97115041]
[1767140212262,0.1,124.98,124.96,11.97367311]
[1767140212436,0.81,124.99,124.97,3.97115041]
[1767140213838,0.81,124.99,124.96,11.97367311]
[1767140214238,0.81,124.99,124.96,3.97115041]
[1767140215574,0.81,124.99,124.95,8.00289887]
[1767140215774,0.81,124.99,124.95,11.97404928]
[1767140216867,0.81,124.99,124.95,3.97115041]
[1767140217071,0.81,124.99,124.95,11.97431323]
[1767140218781,0.81,124.99,124.93,14.62]
[1767140218782,0.81,124.99,124.94,8.00384184]
[1767140218948,0.81,124.99,124.95,3.97115041]
[1767140220574,0.81,124.99,124.96,3.97115041]
[1767140222281,0.81,124.99,124.94,8.00384184]
[1767140222481,0.81,124.99,124.96,2.538387]
[1767140225963,0.81,124.99,124.95,2.538387]
[1767140226377,0.81,124.99,124.96,2.538387]
[1767140229768,0.81,124.99,124.97,2.538387]
[1767140231292,0.81,124.99,124.96,2.538387]
[1767140235994,0.81,124.99,124.95,2.538387]
[1767140239698,0.81,124.99,124.96,2.538387]
[1767140251018,0.81,124.99,124.96,10.54093856]
[1767140257027,0.81,124.99,124.96,8.00255156]
[1767140259336,0.81,124.99,124.96,10.54093856]
[1767140260638,0.81,124.99,124.95,2.538387]
[1767140261216,0.81,124.99,124.96,2.538387]
[1767140264443,0.81,124.99,124.95,10.54104889]
[1767140264648,0.81,124.99,124.94,20.00901536]
[1767140264649,0.81,124.99,124.94,10.54199945]
[1767140264821,0.81,124.99,124.91,19.42769154]
[1767140264822,0.68,124.98,124.91,19.42769154]
[1767140265024,6.00607128,124.97,124.92,2.538387]
[1767140265218,0.68,124.96,124.92,2.538387]
[1767140265423,0.68,124.96,124.93,2.538387]
[1767140266123,0.68,124.96,124.93,10.54232179]
[1767140267239,0.66,124.98,124.94,2.538387]
[1767140267437,0.66,124.98,124.95,2.538387]
[1767140268532,0.66,124.96,124.91,8.00547268]
[1767140268735,0.66,124.95,124.9,22.7261663]
[1767140269016,0.66,124.94,124.9,25.2645533]
[1767140269243,0.66,124.94,124.9,10.5445533]
[1767140270847,0.66,124.93,124.89,10.54541605]
[1767140271231,0.66,124.93,124.89,8.00702905]
[1767140271428,3.198387,124.93,124.89,8.00702905]
[1767140271647,0.66,124.93,124.89,8.00702905]
[1767140273262,0.66,124.93,124.89,2.538387]
[1767140274472,0.66,124.93,124.89,10.5453573]
[1767140274769,0.66,124.93,124.89,8.0069703]
[1767140274971,0.66,124.91,124.86,28.37173256]
[1767140275289,0.66,124.91,124.86,30.91011956]
[1767140275447,0.66,124.91,124.87,2.538387]
[1767140275643,2.538387,124.91,124.83,22.82362852]
[1767140275841,0.66,124.86,124.83,0.2]
[1767140276148,0.66,124.84,124.83,0.2]
[1767140277482,0.66,124.83,124.82,0.2]
[1767140277670,0.66,124.83,124.8,8.01256196]
[1767140279562,0.66,124.83,124.78,20.43479282]
[1767140279887,0.66,124.82,124.78,22.97317982]
[1767140280080,0.66,124.82,124.79,8.01344108]
[1767140281089,0.66,124.82,124.76,8.55013837]
[1767140281090,0.66,124.79,124.77,1e-08]
[1767140281372,14.62,124.79,124.76,1e-08]
[1767140281557,2.538387,124.78,124.76,1e-08]
[1767140281974,2.538387,124.78,124.75,0.2]
[1767140281975,2.538387,124.77,124.75,1e-08]
[1767140282167,2.538387,124.76,124.74,1e-08]
[1767140282359,17.158387,124.75,124.72,1e-08]
[1767140282554,2.538387,124.74,124.72,1e-08]
[1767140282754,2.538387,124.73,124.72,1e-08]
[1767140282987,14.62,124.75,124.72,1e-08]
[1767140282988,2.538387,124.74,124.72,1e-08]
[1767140283159,0.66,124.73,124.72,1e-08]
[1767140284175,2.538387,124.76,124.72,1e-08]
[1767140284372,0.66,124.74,124.72,1e-08]
[1767140284764,4.6431032,124.74,124.72,1e-08]
[1767140284968,0.66,124.74,124.72,1e-08]
[1767140288484,114.73324157,124.81,124.72,1e-08]
[1767140288485,14.64,124.77,124.72,0.69000001]
[1767140288657,15.3,124.77,124.73,4.6731032]
[1767140288857,0.66,124.76,124.73,4.6731032]
[1767140289970,0.66,124.76,124.73,0.69]
[1767140290761,0.66,124.76,124.73,8.70721824]
[1767140291363,0.66,124.76,124.73,0.69]
[1767140296987,0.66,124.76,124.73,4.6731032]
[1767140297383,0.66,124.76,124.73,0.69]
[1767140297588,0.66,124.76,124.72,12.00087175]
[1767140297807,0.72,124.72,124.71,1e-08]
[1767140297996,4.67210501,124.72,124.71,1e-08]
[1767140298289,4.67210501,124.72,124.68,8.69008324]
[1767140298290,3.9831032,124.72,124.68,8.02008324]
[1767140298493,14.64,124.73,124.66,0.67]
[1767140298494,3.9831032,124.69,124.66,0.67]
[1767140298665,14.64,124.7,124.66,0.67]
[1767140298869,3.9831032,124.69,124.66,0.67]
[1767140299166,18.6231032,124.7,124.66,8.69178158]
[1767140299978,19.3431032,124.7,124.66,8.69178158]
[1767140300287,0.72,124.74,124.69,4.6531032]
[1767140300487,0.72,124.73,124.7,0.67]
[1767140301193,0.72,124.73,124.7,8.68919837]
[1767140301570,0.72,124.73,124.7,0.67]
[1767140307700,15.36,124.73,124.7,0.67]
[1767140307900,19.3431032,124.73,124.7,0.67]
[1767140308619,0.72,124.7,124.66,0.67]
[1767140308895,0.72,124.7,124.66,8.02158144]
[1767140309095,0.72,124.7,124.67,0.67]
[1767140309899,0.72,124.7,124.67,8.69106389]
[1767140310404,0.72,124.7,124.67,0.67]
[1767140310794,4.7031032,124.7,124.62,18.279505]
[1767140310994,4.7031032,124.67,124.62,8.02387059]
[1767140311191,0.72,124.67,124.63,8.69369213]
[1767140311389,0.72,124.67,124.64,0.67]
[1767140313695,0.72,124.67,124.63,8.69369213]
[1767140314799,4.7031032,124.67,124.63,8.69369213]
[1767140314993,4.7031032,124.67,124.63,8.02369213]
[1767140315318,0.72,124.67,124.64,0.67]
[1767140317586,0.72,124.67,124.63,0.67]
[1767140318206,4.7031032,124.67,124.63,0.67]